bitfinex/quotes_ETHUSD_20250720
["timestamp","ask_amount","ask_price","bid_price","bid_amount"]
[1753010081014,0.002,3698.9,3698.8,39.77225347]
[1753010081721,0.002,3698.9,3698.8,10.53824447]
[1753010082054,0.002,3698.9,3698.8,40.53824447]
[1753010082544,0.002,3698.9,3698.8,34.66289247]
[1753010083041,0.002,3698.9,3698.8,38.87954647]
[1753010083247,0.002,3698.9,3698.8,36.98006247]
[1753010083570,0.002,3698.9,3698.8,34.49535647]
[1753010084070,0.002,3698.9,3698.8,40.53824447]
[1753010084230,0.002,3698.9,3698.8,40.11619647]
[1753010085126,0.002,3698.9,3698.8,40.53824447]
[1753010085726,0.002,3698.9,3698.8,39.72769147]
[1753010086067,0.002,3698.9,3698.8,46.20869147]
[1753010086269,0.002,3698.9,3698.8,35.61469147]
[1753010086442,0.002,3698.9,3698.8,46.20769147]
[1753010086970,0.002,3698.9,3698.8,42.50392247]
[1753010087153,0.002,3698.9,3698.8,16.20769147]
[1753010087346,0.002,3698.9,3698.8,46.20769147]
[1753010087730,0.002,3698.9,3698.8,47.01824447]
[1753010092086,0.002,3698.9,3698.8,40.74624447]
[1753010092368,0.002,3698.9,3698.8,29.0598048]
[1753010092581,0.002,3698.9,3698.8,31.3321688]
[1753010093133,0.002,3698.9,3698.8,28.2930858]
[1753010093475,0.002,3698.9,3698.8,24.1810858]
[1753010093646,0.002,3698.9,3698.8,23.2362918]
[1753010093850,0.4367,3698.9,3698.8,15.3694168]
[1753010094145,1.4462,3698.9,3698.8,18.3694168]
[1753010094577,1.4462,3698.9,3698.8,22.2327718]
[1753010094746,1.4462,3698.9,3698.8,20.2269818]
[1753010095463,1.4462,3698.9,3698.8,12.2800278]
[1753010095680,1.4462,3698.9,3698.8,19.8288278]
[1753010095974,1.1095,3698.9,3698.8,19.8288278]
[1753010096178,1.1095,3698.9,3698.8,19.2169508]
[1753010096505,1.5061,3698.9,3698.8,20.2321268]
[1753010096641,1.5061,3698.9,3698.8,21.4584878]
[1753010097036,1.5081,3698.9,3698.8,21.4584878]
[1753010097560,1.5081,3698.9,3698.8,15.4546308]
[1753010097761,1.1115,3698.9,3698.8,24.2045208]
[1753010098760,1.1115,3698.9,3698.8,26.1493128]
[1753010099080,0.002,3698.9,3698.8,24.8917058]
[1753010099778,0.002,3698.9,3698.8,28.2769438]
[1753010100378,0.002,3698.9,3698.8,23.4131798]
[1753010100601,0.002,3698.9,3698.8,22.2299418]
[1753010100742,0.002,3698.9,3698.8,19.2659418]
[1753010100942,0.002,3698.9,3698.8,16.2668268]
[1753010101150,0.3986,3698.9,3698.8,16.2668268]
[1753010101777,0.3986,3698.9,3698.8,17.8762368]
[1753010101979,0.3986,3698.9,3698.8,16.6162028]
[1753010102279,0.3986,3698.9,3698.8,16.2667268]
[1753010102482,0.002,3698.9,3698.8,16.2667268]
[1753010102982,0.002,3698.9,3698.8,18.7368848]
[1753010103543,0.3986,3698.9,3698.8,9.6309628]
[1753010103788,3.15756318,3698.9,3698.8,13.6085628]
[1753010104097,3.15756318,3698.9,3698.8,16.2454528]
[1753010104644,0.3986,3698.9,3698.8,16.2454528]
[1753010104845,0.3986,3698.9,3698.8,20.1600788]
[1753010105266,0.3986,3698.9,3698.8,19.8838958]
[1753010105456,0.002,3698.9,3698.8,19.8838958]
[1753010105981,0.002,3698.9,3698.8,25.9279228]
[1753010106881,0.002,3698.9,3698.8,13.6085628]
[1753010107086,0.002,3698.9,3698.8,25.9479618]
[1753010108007,0.002,3698.9,3698.8,26.1944418]
[1753010109067,0.002,3698.9,3698.8,26.9488858]
[1753010109895,0.002,3698.9,3698.8,22.8368858]
[1753010110094,0.002,3698.9,3698.8,28.3542718]
[1753010110286,0.002,3698.9,3698.8,28.7818718]
[1753010110594,0.002,3698.9,3698.8,28.9042718]
[1753010110796,0.002,3698.9,3698.8,22.8508718]
[1753010111100,0.002,3698.9,3698.8,38.0231468]
[1753010111283,0.002,3698.9,3698.8,38.0131468]
[1753010111593,0.002,3698.9,3698.8,37.6914578]
[1753010111901,0.002,3698.9,3698.8,33.3180888]
[1753010112098,0.002,3698.9,3698.8,8.2395628]
[1753010112487,0.002,3698.9,3698.8,33.2633378]
[1753010113197,0.002,3698.9,3698.8,33.6746658]
[1753010113555,0.002,3698.9,3698.8,33.2442468]
[1753010113757,0.002,3698.9,3698.8,32.2124888]
[1753010114401,0.002,3698.9,3698.8,34.5739078]
[1753010114559,0.002,3698.9,3698.8,27.7159818]
[1753010114954,0.002,3698.9,3698.8,26.6837348]
[1753010115203,0.002,3698.9,3698.8,27.7174368]
[1753010115602,0.002,3698.9,3698.8,27.4984678]
[1753010116389,0.002,3698.9,3698.8,28.2163798]
[1753010117392,0.002,3698.9,3698.8,28.2164798]
[1753010117902,0.002,3698.9,3698.8,26.8411628]
[1753010118399,0.002,3698.9,3698.8,8.2395628]
[1753010118617,0.002,3698.9,3698.8,31.9145438]
[1753010118757,0.002,3698.9,3698.8,31.9020938]
[1753010119208,0.002,3698.9,3698.8,33.0221938]
[1753010119556,0.002,3698.9,3698.8,39.3596628]
[1753010120900,0.002,3698.9,3698.8,29.2763768]
[1753010121135,0.002,3698.9,3698.8,25.9014928]
[1753010121645,0.002,3698.9,3698.8,31.6916428]
[1753010121786,0.002,3698.9,3698.8,30.7891508]
[1753010122420,0.002,3698.9,3698.8,26.2495508]
[1753010122600,0.002,3698.9,3698.8,18.6686838]
[1753010123619,0.002,3698.9,3698.8,7.8109628]
[1753010123990,0.002,3698.9,3698.8,18.3223698]
[1753010124215,0.002,3698.9,3698.8,16.8308768]
[1753010124613,0.002,3698.9,3698.8,7.8109628]
[1753010124992,0.002,3698.9,3698.8,18.6972998]
[1753010125192,0.002,3698.9,3698.8,18.7380058]
[1753010125825,0.002,3698.9,3698.8,23.0697678]
[1753010126806,0.002,3698.9,3698.8,23.1278498]
[1753010127023,0.002,3698.9,3698.8,22.6089058]
[1753010127896,0.002,3698.9,3698.8,22.6438608]
[1753010128429,0.002,3698.9,3698.8,9.9449938]
[1753010128628,0.002,3698.9,3698.8,14.0559938]
[1753010128795,0.002,3698.9,3698.8,17.4234988]
[1753010130021,0.002,3698.9,3698.8,14.5941388]
[1753010131007,0.002,3698.9,3698.8,17.6273138]
[1753010132021,0.002,3698.9,3698.8,11.8124448]
[1753010132419,0.4586,3698.9,3698.8,9.5577438]
[1753010132999,0.4586,3698.9,3698.8,13.5330418]
[1753010133201,0.002,3698.9,3698.8,13.5330418]
[1753010134097,0.002,3698.9,3698.8,22.1016368]
[1753010134295,0.002,3698.9,3698.8,38.2397628]
[1753010134795,10.002,3698.9,3698.8,38.2397628]
[1753010138004,10.002,3698.9,3698.8,8.2397628]
[1753010138421,10.002,3698.9,3698.8,35.9420548]
[1753010138636,10.002,3698.9,3698.8,32.3336268]
[1753010138824,10.002,3698.9,3698.8,20.8966898]
[1753010139017,10.002,3698.9,3698.8,20.4678898]
[1753010139243,10.002,3698.9,3698.8,17.4396788]
[1753010140349,10.002,3698.9,3698.8,17.0020888]
[1753010140919,10.002,3698.9,3698.8,16.1951528]
[1753010141118,10.002,3698.9,3698.8,13.4042518]
[1753010142265,10.002,3698.9,3698.8,7.8109628]
[1753010142548,10.002,3698.9,3698.8,10.2955938]
[1753010142751,10.4586,3698.9,3698.8,10.2955938]
[1753010143420,10.4586,3698.9,3698.8,10.2921148]
[1753010143933,10.4586,3698.9,3698.8,7.2599628]
[1753010144365,11.25967138,3698.9,3698.8,7.2599628]
[1753010144667,10.80307138,3698.9,3698.8,10.0593068]
[1753010145168,11.25967138,3698.9,3698.8,10.0593068]
[1753010145328,12.44017138,3698.9,3698.8,10.0593068]
[1753010145530,11.6391,3698.9,3698.8,10.0593068]
[1753010145730,11.1825,3698.9,3698.8,29.2223438]
[1753010145952,11.1825,3698.9,3698.8,25.9351688]
[1753010146358,11.1825,3698.9,3698.8,25.4098308]
[1753010147851,11.1825,3698.9,3698.8,7.2599628]
[1753010148272,11.1825,3698.9,3698.8,22.1945548]
[1753010148475,11.1825,3698.9,3698.8,19.3747268]
[1753010148976,11.1825,3698.9,3698.8,18.4444068]
[1753010149536,11.1825,3698.9,3698.8,18.0445638]
[1753010149874,11.1825,3698.9,3698.8,17.7382268]
[1753010150176,11.1825,3698.9,3698.8,9.9650438]
[1753010151035,11.1825,3698.9,3698.8,7.2599628]
[1753010151972,11.1825,3698.9,3698.8,12.0050638]
[1753010152354,11.1825,3698.9,3698.8,10.36466656]
[1753010153178,11.1825,3698.9,3698.8,11.59666656]
[1753010154254,11.1825,3698.9,3698.8,15.69544956]
[1753010154638,10.002,3698.9,3698.8,15.69544956]
[1753010156379,10.002,3698.9,3698.8,15.67844956]
[1753010156682,10.002,3698.9,3698.8,13.65862156]
[1753010157290,10.002,3698.9,3698.8,13.67110556]
[1753010158383,10.002,3698.9,3698.8,27.15829056]
[1753010158806,10.002,3698.9,3698.8,21.61355256]
[1753010159169,10.002,3698.9,3698.8,20.23377456]
[1753010159406,10.002,3698.9,3698.8,17.79655756]
[1753010159581,10.002,3698.9,3698.8,16.50714056]
[1753010160508,10.002,3698.9,3698.8,16.52614056]
[1753010161310,0.002,3698.9,3698.8,16.52614056]
[1753010161479,0.002,3698.9,3698.8,17.63714056]
[1753010162374,0.002,3698.9,3698.8,14.30239056]
[1753010163312,0.002,3698.9,3698.8,15.31219056]
[1753010163508,0.002,3698.9,3698.8,33.67814356]
[1753010163686,0.002,3698.9,3698.8,33.39258356]
[1753010164614,0.002,3698.9,3698.8,8.40236556]
[1753010164773,0.002,3698.9,3698.8,33.60598356]
[1753010165585,0.002,3698.9,3698.8,8.40236556]
[1753010165791,0.002,3698.9,3698.8,35.40307356]
[1753010166616,0.002,3698.9,3698.8,32.09291556]
[1753010166799,0.002,3698.9,3698.8,8.40236556]
[1753010167115,0.002,3698.9,3698.8,31.04653056]
[1753010167299,0.002,3698.9,3698.8,32.17703056]
[1753010167703,0.002,3698.9,3698.8,39.53286556]
[1753010168699,0.002,3698.9,3698.8,9.53286556]
[1753010169205,0.002,3698.9,3698.8,39.53286556]
[1753010171815,0.002,3698.9,3698.8,9.53286556]
[1753010172223,0.002,3698.9,3698.8,39.53286556]
[1753010173315,0.002,3698.9,3698.8,36.89709656]
[1753010173517,0.002,3698.9,3698.8,34.04655656]
[1753010173888,0.002,3698.9,3698.8,39.53286556]
[1753010174425,0.002,3698.9,3698.8,39.02352356]
[1753010174621,0.002,3698.9,3698.8,38.19512156]
[1753010174919,0.002,3698.9,3698.8,9.53286556]
[1753010175283,0.002,3698.9,3698.8,37.72970056]
[1753010175480,0.002,3698.9,3698.8,37.70271656]
[1753010176018,0.002,3698.9,3698.8,9.53286556]
[1753010176389,0.002,3698.9,3698.8,39.53286556]
[1753010176814,0.002,3698.9,3698.8,36.68573056]
[1753010176988,0.002,3698.9,3698.8,9.53286556]
[1753010177386,0.002,3698.9,3698.8,36.28995956]
[1753010177587,0.002,3698.9,3698.8,36.31694756]
[1753010178007,0.002,3698.9,3698.8,9.53286556]
[1753010178413,0.002,3698.9,3698.8,39.53286556]
[1753010181950,0.002,3698.9,3698.8,28.47465256]
[1753010182298,0.002,3698.9,3698.8,6.16676656]
[1753010182498,0.002,3698.9,3698.8,10.27376656]
[1753010182842,0.002,3698.9,3698.8,3.86147356]
[1753010183153,4.29226318,3698.9,3698.8,6.77988856]
[1753010183453,1.1024,3698.9,3698.8,10.50890056]
[1753010183596,1.1024,3698.9,3698.8,13.50890056]
[1753010183795,1.1024,3698.9,3698.8,14.05890056]
[1753010184225,1.1024,3698.9,3698.8,7.93956556]
[1753010184412,1.1024,3698.9,3698.8,14.46475156]
[1753010184606,1.1024,3698.9,3698.8,12.92337756]
[1753010185143,0.002,3698.9,3698.8,12.92337756]
[1753010185297,0.002,3698.9,3698.8,15.27045356]
[1753010185499,0.002,3698.9,3698.8,12.12521656]
[1753010186318,0.002,3698.9,3698.8,14.50652856]
[1753010187014,0.002,3698.9,3698.8,16.05322856]
[1753010187339,0.002,3698.9,3698.8,37.99872156]
[1753010187543,0.002,3698.9,3698.8,37.50974556]
[1753010187707,0.002,3698.9,3698.8,29.98644656]
[1753010188127,0.002,3698.9,3698.8,27.79523956]
[1753010188334,0.002,3698.9,3698.8,9.48626556]
[1753010188761,0.002,3698.9,3698.8,28.68881056]
[1753010188934,0.002,3698.9,3698.8,30.00347856]
[1753010189460,0.002,3698.9,3698.8,29.12937756]
[1753010190569,0.002,3698.9,3698.8,34.17710156]
[1753010191650,0.002,3698.9,3698.8,39.48626556]
[1753010192544,0.002,3698.9,3698.8,9.48626556]
[1753010192960,0.002,3698.9,3698.8,38.43082556]
[1753010193183,0.002,3698.9,3698.8,39.48626556]
[1753010193348,0.002,3698.9,3698.8,38.46357556]
[1753010193676,0.002,3698.9,3698.8,39.48626556]
[1753010194890,0.002,3698.9,3698.8,27.79861056]
[1753010195072,0.002,3698.9,3698.8,21.03965156]
[1753010195238,0.002,3698.9,3698.8,19.95275156]
[1753010195445,0.002,3698.9,3698.8,24.05975156]
[1753010195635,0.002,3698.9,3698.8,7.93956556]
[1753010195829,0.002,3698.9,3698.8,8.39126556]
[1753010196035,0.002,3698.9,3698.8,33.59745456]
[1753010196286,0.002,3698.9,3698.8,33.16925956]
[1753010196505,0.002,3698.9,3698.8,32.01922156]
[1753010196785,0.002,3698.9,3698.8,33.61227856]
[1753010197732,0.002,3698.9,3698.8,8.39026556]
[1753010198230,0.002,3698.9,3698.8,39.53986556]
[1753010198680,0.002,3698.9,3698.8,9.53986556]
[1753010199110,0.002,3698.9,3698.8,39.53986556]
[1753010200437,260.55847767,3699.0,3698.9,3.55]
[1753010200629,260.55847767,3699.0,3698.9,34.0017]
[1753010202745,260.55847767,3699.0,3698.9,31.82258]
[1753010202952,260.55847767,3699.0,3698.9,17.75836]
[1753010203246,260.55847767,3699.0,3698.9,13.508493]
[1753010203554,260.55847767,3699.0,3698.9,16.508493]
[1753010203901,260.55847767,3699.0,3698.9,33.92835]
[1753010204459,260.55847767,3699.0,3698.9,34.38005]
[1753010204921,260.55847767,3699.0,3698.9,39.2443]
[1753010206055,260.55847767,3699.0,3698.9,39.1443]
[1753010209930,260.55847767,3699.0,3698.9,9.1443]
[1753010210136,260.55847767,3699.0,3698.9,39.1443]
[1753010215199,260.55847767,3699.0,3698.9,9.1443]
[1753010215407,260.55847767,3699.0,3698.9,39.1443]
[1753010216969,260.55847767,3699.0,3698.9,34.5866]
[1753010217175,260.55847767,3699.0,3698.9,39.1433]
[1753010218199,260.55847767,3699.0,3698.9,9.1433]
[1753010218400,260.55847767,3699.0,3698.9,39.1433]
[1753010222105,260.55847767,3699.0,3698.9,37.555]
[1753010223809,260.55847767,3699.0,3698.9,44.035]
[1753010224008,260.55847767,3699.0,3698.9,44.464]
[1753010224959,260.55847767,3699.0,3698.9,44.035]
[1753010225857,260.55847767,3699.0,3698.9,44.036]
[1753010226483,260.55847767,3699.0,3698.9,44.465]
[1753010227129,260.55847767,3699.0,3698.9,44.036]
[1753010228126,260.55847767,3699.0,3698.9,44.465]
[1753010228625,260.55847767,3699.0,3698.9,44.036]
[1753010229611,260.55847767,3699.0,3698.9,14.036]
[1753010229786,260.55847767,3699.0,3698.9,44.036]
[1753010231579,260.55847767,3699.0,3698.9,44.035]
[1753010234508,260.55847767,3699.0,3698.9,39.931]
[1753010234710,260.55847767,3699.0,3698.9,44.035]
[1753010236921,260.55847767,3699.0,3698.9,39.931]
[1753010237127,260.55847767,3699.0,3698.9,44.035]
[1753010237619,260.55847767,3699.0,3698.9,44.464]
[1753010242163,260.55847767,3699.0,3698.9,14.464]
[1753010242362,260.55847767,3699.0,3698.9,45.1451]
[1753010242665,260.54631542,3699.0,3698.9,45.5741]
[1753010243218,260.54631542,3699.0,3698.9,15.5741]
[1753010243436,260.54631542,3699.0,3698.9,45.5741]
[1753010244265,260.54631542,3699.0,3698.9,15.5741]
[1753010244440,260.54631542,3699.0,3698.9,45.5741]
[1753010245965,260.54631542,3699.0,3698.9,44.035]
[1753010248870,260.54631542,3699.0,3698.9,44.5085]
[1753010249971,260.54631542,3699.0,3698.9,44.51837265]
[1753010250600,260.54631542,3699.0,3698.9,14.51837265]
[1753010250743,260.54631542,3699.0,3698.9,44.51837265]
[1753010252593,260.54631542,3699.0,3698.9,14.51837265]
[1753010252833,260.54631542,3699.0,3698.9,45.32885665]
[1753010254342,260.54631542,3699.0,3698.9,46.40525665]
[1753010257589,260.54631542,3699.0,3698.9,46.395384]
[1753010257991,260.53414555,3699.0,3698.9,46.395384]
[1753010259501,260.53414555,3699.0,3698.9,42.291384]
[1753010259797,260.53414555,3699.0,3698.9,16.394384]
[1753010260109,260.53414555,3699.0,3698.9,46.394384]
[1753010260723,260.53414555,3699.0,3698.9,45.317984]
[1753010261820,260.53414555,3699.0,3698.9,15.317984]
[1753010261992,260.53414555,3699.0,3698.9,45.317984]
[1753010263423,260.53414555,3699.0,3698.9,41.214984]
[1753010263579,260.53414555,3699.0,3698.9,45.316984]
[1753010265721,260.53414555,3699.0,3698.9,41.214984]
[1753010265929,260.53414555,3699.0,3698.9,45.316984]
[1753010269923,260.53414555,3699.0,3698.9,44.5065]
[1753010270810,260.53414555,3699.0,3698.9,44.84921315]
[1753010271122,260.53414555,3699.0,3698.9,44.778312]
[1753010272805,260.52196816,3699.0,3698.9,44.778312]
[1753010273111,260.52196816,3699.0,3698.9,14.778312]
[1753010273623,260.52196816,3699.0,3698.9,44.778312]
[1753010274386,260.52196816,3699.0,3698.9,44.032]
[1753010274828,260.52196816,3699.0,3698.9,44.842446]
[1753010275129,260.52196816,3699.0,3698.9,45.315946]
[1753010277251,260.52196816,3699.0,3698.9,15.315946]
[1753010277457,260.52196816,3699.0,3698.9,45.315946]
[1753010278161,260.52196816,3699.0,3698.9,41.214946]
[1753010278326,260.52196816,3699.0,3698.9,45.315946]
[1753010278521,260.52196816,3699.0,3698.9,46.380146]
[1753010278722,259.8313152,3699.0,3698.9,54.550708]
[1753010279073,247.82688248,3699.0,3698.9,54.550708]
[1753010279422,247.53714603,3699.0,3698.9,56.170708]
[1753010279624,227.53904367,3699.0,3698.9,56.170708]
[1753010279874,225.41904367,3699.0,3698.9,56.170708]
[1753010280223,213.92904367,3699.0,3698.9,56.170708]
[1753010280729,203.32904367,3699.0,3698.9,56.170708]
[1753010281063,201.20904367,3699.0,3698.9,56.170708]
[1753010281365,199.08904367,3699.0,3698.9,56.169708]
[1753010281552,200.31904367,3699.0,3698.9,56.169708]
[1753010283069,201.54904367,3699.0,3698.9,56.169708]
[1753010283262,155.24090254,3699.0,3698.9,56.54807115]
[1753010283474,148.58574513,3699.0,3698.9,26.54807115]
[1753010283625,148.58574513,3699.0,3698.9,56.54807115]
[1753010283819,144.34574513,3699.0,3698.9,56.54807115]
[1753010284053,133.74574513,3699.0,3698.9,56.54807115]
[1753010284255,130.73574513,3699.0,3698.9,56.54807115]
[1753010284640,130.73574513,3699.0,3698.9,57.44807115]
[1753010285150,101.43985585,3699.0,3698.9,57.44807115]
[1753010285479,71.34,3699.0,3698.9,57.8416837]
[1753010285668,28.44076194,3699.0,3698.9,27.8416837]
[1753010285828,16.53173758,3699.0,3698.9,30.6846837]
[1753010286032,9.62068256,3699.0,3698.9,60.6846837]
[1753010286251,15.75854236,3699.2,3699.1,5.013]
[1753010286454,4.49706636,3699.5,3699.4,6.1407]
[1753010286763,2.24215839,3699.5,3699.4,14.80367104]
[1753010286967,0.12215839,3699.5,3699.4,42.09507104]
[1753010287170,1.23,3701.1,3699.7,2.17]
[1753010287327,1.23,3701.1,3699.7,39.59599534]
[1753010287532,1.23,3701.1,3699.8,40.83297104]
[1753010287828,1.23,3701.1,3699.8,37.86067104]
[1753010288036,1.23,3701.1,3699.8,41.96067104]
[1753010288343,18.38251481,3699.9,3699.8,41.96067104]
[1753010288527,18.28377121,3699.9,3699.8,42.77065504]
[1753010290468,18.28377121,3699.9,3699.8,12.77065504]
[1753010290776,18.27630551,3699.9,3699.8,42.77065504]
[1753010291977,0.885137,3700.0,3699.9,6.3354]
[1753010292183,0.75027415,3700.0,3699.9,41.53237104]
[1753010292482,24.06812138,3700.3,3700.2,6.3354]
[1753010292777,0.66163326,3700.3,3700.2,44.84037104]
[1753010292960,0.002,3700.7,3700.5,6.2469]
[1753010293165,0.002,3700.7,3700.5,41.13689534]
[1753010293677,0.002,3700.7,3700.5,36.22770734]
[1753010294194,38.1097094,3700.6,3700.5,40.32670734]
[1753010296094,39.3397094,3700.6,3700.5,40.52477366]
[1753010296750,39.3397094,3700.6,3700.5,36.42577366]
[1753010296953,39.3397094,3700.6,3700.5,40.52377366]
[1753010297191,39.3397094,3700.6,3700.5,10.52377366]
[1753010297527,40.5697094,3700.6,3700.5,12.75387366]
[1753010297649,40.5697094,3700.6,3700.5,38.43187366]
[1753010298054,40.5697094,3700.6,3700.5,35.98187366]
[1753010298359,40.5697094,3700.6,3700.5,38.98187366]
[1753010298559,40.5697094,3700.6,3700.5,39.44687366]
[1753010298775,41.7997094,3700.6,3700.5,39.44687366]
[1753010298992,41.7997094,3700.6,3700.5,40.59947366]
[1753010300176,43.0297094,3700.6,3700.5,40.99308621]
[1753010300679,43.0297094,3700.6,3700.5,40.59947366]
[1753010301205,43.0297094,3700.6,3700.5,39.44687366]
[1753010301407,43.0297094,3700.6,3700.5,38.98187366]
[1753010301610,44.2597094,3700.6,3700.5,38.98187366]
[1753010302307,44.2597094,3700.6,3700.5,39.44687366]
[1753010302466,44.2597094,3700.6,3700.5,39.58127366]
[1753010302666,44.2597094,3700.6,3700.5,39.58027366]
[1753010303207,45.4897094,3700.6,3700.5,39.58027366]
[1753010303783,45.4897094,3700.6,3700.5,41.78194936]
[1753010304682,46.7197094,3700.6,3700.5,41.78194936]
[1753010306405,47.9497094,3700.6,3700.5,13.40194936]
[1753010306708,47.82319024,3700.6,3700.5,13.40194936]
[1753010307012,47.82319024,3700.6,3700.5,43.02358621]
[1753010307909,49.05319024,3700.6,3700.5,43.02358621]
[1753010308717,49.03915833,3700.6,3700.5,43.02358621]
[1753010308883,49.03915833,3700.6,3700.5,50.89358621]
[1753010309510,50.26915833,3700.6,3700.5,48.99888621]
[1753010309818,50.26915833,3700.6,3700.5,42.88827366]
[1753010310119,50.26915833,3700.6,3700.5,46.43527366]
[1753010310475,50.26915833,3700.6,3700.5,46.98527366]
[1753010310878,51.49915833,3700.6,3700.5,42.88827366]
[1753010311081,51.49915833,3700.6,3700.5,46.98527366]
[1753010311322,51.49915833,3700.6,3700.5,43.73328621]
[1753010311498,51.49915833,3700.6,3700.5,17.83028621]
[1753010311698,51.49915833,3700.6,3700.5,24.68464936]
[1753010312098,51.49915833,3700.6,3700.5,54.68464936]
[1753010312309,52.72915833,3700.6,3700.5,56.16354936]
[1753010312624,52.72915833,3700.6,3700.5,57.78354936]
[1753010312828,49.2,3700.6,3700.5,57.78354936]
[1753010313121,36.39042131,3700.6,3700.5,57.78354936]
[1753010313300,36.25556209,3700.6,3700.5,57.78354936]
[1753010313628,37.35070287,3700.6,3700.5,57.78354936]
[1753010313932,33.25194117,3700.6,3700.5,57.78354936]
[1753010314135,33.11708195,3700.6,3700.5,57.78354936]
[1753010314487,32.98222273,3700.6,3700.5,57.78454936]
[1753010314685,32.98422273,3700.6,3700.5,57.78454936]
[1753010314881,27.48623813,3700.6,3700.5,57.78454936]
[1753010315201,27.35137891,3700.6,3700.5,57.78454936]
[1753010315624,27.21651969,3700.6,3700.5,57.78454936]
[1753010316160,20.97680947,3700.6,3700.5,52.83825636]
[1753010316447,24.6,3701.4,3701.3,6.5733]
[1753010316608,1.01841444,3702.6,3701.5,6.0233]
[1753010316806,1.01841444,3702.6,3701.8,0.55]
[1753010317040,1.23,3704.0,3702.6,0.55]
[1753010317259,1.23,3704.0,3703.0,0.55]
[1753010317412,0.22995506,3703.1,3703.0,40.00382106]
[1753010317608,0.22995506,3703.1,3703.0,41.2735194]
[1753010317952,1.23,3704.0,3703.2,0.55]
[1753010318105,1.23,3704.0,3703.4,3.55]
[1753010318440,1.23,3704.0,3703.4,33.6844]
[1753010318441,1.6929,3704.0,3703.4,33.6844]
[1753010319049,1.23,3704.0,3703.4,33.6844]
[1753010319246,1.23,3704.0,3703.4,34.1358]
[1753010319424,1.23,3704.0,3703.4,34.6660444]
[1753010319823,3.96,3703.5,3703.4,37.7018444]
[1753010320021,1.23,3704.0,3703.6,0.55]
[1753010320220,1.6929,3704.0,3703.8,3.55]
[1753010320431,1.23,3704.0,3703.9,38.12339534]
[1753010320634,1.23,3704.0,3703.9,38.93261934]
[1753010321548,2.46,3704.0,3703.9,39.38401934]
[1753010321749,2.46,3704.0,3703.9,38.93261934]
[1753010322048,2.46,3704.0,3703.9,33.943624]
[1753010322213,2.9229,3704.0,3703.9,44.530624]
[1753010322413,2.9229,3704.0,3703.9,45.080624]
[1753010322646,1.92266817,3704.0,3703.9,45.080624]
[1753010322852,1.92266817,3704.0,3703.9,34.493624]
[1753010323063,3.15266817,3704.0,3703.9,45.080624]
[1753010323350,2.68976817,3704.0,3703.9,34.493624]
[1753010323513,2.68976817,3704.0,3703.9,45.080624]
[1753010323715,2.68976817,3704.0,3703.9,45.8525997]
[1753010324441,3.91976817,3704.0,3703.9,45.8525997]
[1753010324639,3.91976817,3704.0,3703.9,46.5924117]
[1753010325435,3.91976817,3704.0,3703.9,46.5934117]
[1753010325990,5.14976817,3704.0,3703.9,46.5934117]
[1753010326284,1.455,3705.0,3704.0,3.55]
[1753010326425,1.455,3705.0,3704.2,3.55]
[1753010326770,1.455,3705.0,3704.9,0.6844]
[1753010326988,1.455,3705.0,3704.9,37.7984]
[1753010327327,2.685,3705.0,3704.9,38.607462]
[1753010327530,1.23,3705.0,3704.9,38.895874]
[1753010328243,1.23,3705.0,3704.9,41.1413497]
[1753010328464,1.23,3705.0,3704.9,37.0273497]
[1753010328692,1.45906955,3705.0,3704.9,41.5947497]
[1753010328990,1.45906955,3705.0,3704.9,41.72975415]
[1753010329137,1.23,3705.2,3705.0,3.55]
[1753010329338,1.23,3705.2,3705.1,39.52]
[1753010329651,0.4629,3706.2,3705.2,4.21677515]
[1753010329849,1.543,3705.6,3705.4,3.6844]
[1753010330145,14.76,3705.5,3705.4,33.6844]
[1753010330352,14.76,3705.5,3705.4,34.80257515]
[1753010330529,14.76,3705.5,3705.4,37.23138015]
[1753010331072,14.76,3705.5,3705.4,38.63498015]
[1753010331274,14.76,3705.5,3705.4,37.96820715]
[1753010331437,15.99,3705.5,3705.4,38.41960715]
[1753010331632,14.69,3705.5,3705.4,39.82320715]
[1753010331833,6.21,3705.5,3705.4,40.42138112]
[1753010332032,6.21,3705.5,3705.4,13.35215412]
[1753010332234,159.15811969,3706.7,3705.6,0.55]
[1753010332439,159.15811969,3706.7,3706.0,0.55]
[1753010332778,160.38811969,3706.7,3706.2,3.55]
[1753010332942,160.38811969,3706.7,3706.4,3.55]
[1753010333272,160.38811969,3706.7,3706.6,3.55]
[1753010333479,160.38811969,3706.7,3706.6,33.55]
[1753010333835,160.38811969,3706.7,3706.6,28.421777]
[1753010334036,160.85101969,3706.7,3706.6,32.543777]
[1753010334257,162.08101969,3706.7,3706.6,35.610665]
[1753010334781,161.08006926,3706.7,3706.6,35.610665]
[1753010334937,160.61716926,3706.7,3706.6,7.672]
[1753010335663,161.84716926,3706.7,3706.5,3.55]
[1753010335864,161.84716926,3706.7,3706.6,37.123]
[1753010336068,161.84716926,3706.7,3706.6,37.673]
[1753010337081,163.07716926,3706.7,3706.6,38.481627]
[1753010337784,162.07623881,3706.7,3706.6,38.481627]
[1753010338153,162.07623881,3706.7,3706.6,30.781727]
[1753010338154,163.69563881,3706.7,3706.6,30.781727]
[1753010338355,1.6194,3706.6,3705.4,0.20456142]
[1753010338669,1.6194,3706.6,3705.5,34.17698691]
[1753010338868,1.6194,3706.6,3705.7,3.0]
[1753010339068,1.5359,3706.4,3705.8,30.358274]
[1753010339383,1.49648014,3706.4,3705.9,7.224694]
[1753010339567,1.49648014,3706.4,3706.1,3.0]
[1753010339775,2.72648014,3706.4,3706.2,20.52825]
[1753010340082,5.48544332,3706.4,3706.3,4.153]
[1753010340283,3.98896318,3706.4,3704.9,7.61872769]
[1753010340485,3.98896318,3706.4,3705.0,12.357663]
[1753010340691,3.98896318,3706.4,3705.1,2.39051]
[1753010340862,3.98896318,3706.4,3705.1,4.155]